[Event "Titled Tuesday Blitz January 17 Early 2023"]
[White "Vaglio Munoz, Jaime"]
[Black "Legenia, Artem"]
[WhiteFideId "6500145"]
[BlackFideId "14136945"]
[WhiteElo "2174"]
[BlackElo "2092"]
[Result "1/2-1/2"]
[Round "05"]
[TimeControl "180+2"]
[Date "2023.01.17"]
[WhiteClock "0:00:19"]
[BlackClock "0:00:14"]

1. d4 {[%clk 0:03:00]}  b6 {[%clk 0:02:56]} 2. c4 {[%clk 0:02:59]}  Bb7 {[%clk 0:02:55]} 3. Nc3 {[%clk 0:02:59]}  g6 {[%clk 0:02:55]} 4. e4 {[%clk 0:02:57]}  Bg7 {[%clk 0:02:55]} 5. f3 {[%clk 0:02:57]}  e6 {[%clk 0:02:56]} 6. Be3 {[%clk 0:02:56]}  Ne7 {[%clk 0:02:56]} 7. d5 {[%clk 0:02:56]}  d6 {[%clk 0:02:52]} 8. Bd4 {[%clk 0:02:54]}  e5 {[%clk 0:02:52]} 9. Bf2 {[%clk 0:02:52]}  a6 {[%clk 0:02:51]} 10. g4 {[%clk 0:02:52]}  Nd7 {[%clk 0:02:50]} 11. h4 {[%clk 0:02:52]}  c6 {[%clk 0:02:49]} 12. h5 {[%clk 0:02:51]}  cxd5 {[%clk 0:02:48]} 13. h6 {[%clk 0:02:49]}  Bf8 {[%clk 0:02:47]} 14. cxd5 {[%clk 0:02:46]}  g5 {[%clk 0:02:43]} 15. Bd3 {[%clk 0:02:34]}  Nc5 {[%clk 0:02:37]} 16. Nge2 {[%clk 0:02:33]}  Ng6 {[%clk 0:02:36]} 17. b4 {[%clk 0:02:29]}  Nxd3+ {[%clk 0:02:36]} 18. Qxd3 {[%clk 0:02:29]}  Be7 {[%clk 0:02:29]} 19. Na4 {[%clk 0:02:25]}  b5 {[%clk 0:02:27]} 20. Bb6 {[%clk 0:02:13]}  Qd7 {[%clk 0:02:26]} 21. Nac3 {[%clk 0:02:10]}  O-O {[%clk 0:02:26]} 22. Ng3 {[%clk 0:01:58]}  Rfc8 {[%clk 0:02:25]} 23. Nce2 {[%clk 0:01:55]}  Rc4 {[%clk 0:02:21]} 24. a3 {[%clk 0:01:54]}  Rac8 {[%clk 0:02:19]} 25. Nf5 {[%clk 0:01:47]}  Bd8 {[%clk 0:02:19]} 26. Be3 {[%clk 0:01:46]}  a5 {[%clk 0:02:16]} 27. Rb1 {[%clk 0:01:42]}  axb4 {[%clk 0:02:15]} 28. axb4 {[%clk 0:01:41]}  Nf4 {[%clk 0:02:13]} 29. Nxf4 {[%clk 0:01:33]}  gxf4 {[%clk 0:02:11]} 30. Bd2 {[%clk 0:01:11]}  Bb6 {[%clk 0:02:07]} 31. Ke2 {[%clk 0:01:11]}  Qc7 {[%clk 0:01:23]} 32. Rb2 {[%clk 0:01:09]}  Ba7 {[%clk 0:01:12]} 33. Ra1 {[%clk 0:00:56]}  Qb6 {[%clk 0:01:11]} 34. Be1 {[%clk 0:00:55]}  Kf8 {[%clk 0:00:56]} 35. Rba2 {[%clk 0:00:54]}  Ra8 {[%clk 0:00:39]} 36. Nxd6 {[%clk 0:00:49]}  Qxd6 {[%clk 0:00:35]} 37. Rxa7 {[%clk 0:00:47]}  Rxa7 {[%clk 0:00:30]} 38. Rxa7 {[%clk 0:00:48]}  Bc8 {[%clk 0:00:30]} 39. Ra8 {[%clk 0:00:42]}  Qxh6 {[%clk 0:00:29]} 40. Bf2 {[%clk 0:00:41]}  Kg7 {[%clk 0:00:29]} 41. d6 {[%clk 0:00:36]}  Bd7 {[%clk 0:00:28]} 42. Ra7 {[%clk 0:00:35]}  Qe6 {[%clk 0:00:27]} 43. Qd5 {[%clk 0:00:34]}  Rxb4 {[%clk 0:00:26]} 44. Qxe6 {[%clk 0:00:33]}  Bxe6 {[%clk 0:00:27]} 45. d7 {[%clk 0:00:33]}  Rb2+ {[%clk 0:00:26]} 46. Kd3 {[%clk 0:00:32]}  Bxd7 {[%clk 0:00:26]} 47. Rxd7 {[%clk 0:00:31]}  Rxf2 {[%clk 0:00:26]} 48. Rd5 {[%clk 0:00:30]}  Rxf3+ {[%clk 0:00:26]} 49. Kd2 {[%clk 0:00:30]}  Rg3 {[%clk 0:00:24]} 50. Rxe5 {[%clk 0:00:30]}  Rxg4 {[%clk 0:00:24]} 51. Rxb5 {[%clk 0:00:30]}  Kg6 {[%clk 0:00:25]} 52. Ke2 {[%clk 0:00:30]}  h5 {[%clk 0:00:25]} 53. Kf3 {[%clk 0:00:30]}  f6 {[%clk 0:00:22]} 54. Ra5 {[%clk 0:00:26]}  Rh4 {[%clk 0:00:20]} 55. Ra8 {[%clk 0:00:25]}  Rg4 {[%clk 0:00:19]} 56. Ra5 {[%clk 0:00:24]}  Rg5 {[%clk 0:00:19]} 57. Ra8 {[%clk 0:00:23]}  Rb5 {[%clk 0:00:18]} 58. Kxf4 {[%clk 0:00:22]}  Rb4 {[%clk 0:00:18]} 59. Rg8+ {[%clk 0:00:21]}  Kf7 {[%clk 0:00:18]} 60. Rh8 {[%clk 0:00:21]}  Kg6 {[%clk 0:00:18]} 61. Rg8+ {[%clk 0:00:21]}  Kh6 {[%clk 0:00:18]} 62. Rf8 {[%clk 0:00:21]}  Rb6 {[%clk 0:00:18]} 63. Kf5 {[%clk 0:00:20]}  h4 {[%clk 0:00:15]} 64. Rh8+ {[%clk 0:00:20]}  Kg7 {[%clk 0:00:15]} 65. Rxh4 {[%clk 0:00:21]}  Rb5+ {[%clk 0:00:15]} 66. Kf4 {[%clk 0:00:21]}  Rg5 {[%clk 0:00:15]} 67. Rh1 {[%clk 0:00:20]}  Kf7 {[%clk 0:00:15]} 68. Ra1 {[%clk 0:00:20]}  Kg6 {[%clk 0:00:14]} 69. Ra6 {[%clk 0:00:19]} 1/2-1/2


[Site "https://www.chess.com"]

[Event "Titled Tuesday Blitz January 17 Early 2023"]
[White "Zherebtsova, Alexandra"]
[Black "Samaganova, Aleksandra"]
[WhiteFideId "24129518"]
[BlackFideId "13800221"]
[WhiteElo "2155"]
[BlackElo "1856"]
[Result "1-0"]
[Round "05"]
[TimeControl "180+2"]
[Date "2023.01.17"]
[WhiteClock "0:00:15"]
[BlackClock "0:00:01"]

1. d4 {[%clk 0:02:59]}  Nf6 {[%clk 0:02:57]} 2. Nf3 {[%clk 0:02:59]}  e6 {[%clk 0:02:56]} 3. c4 {[%clk 0:02:59]}  b6 {[%clk 0:02:55]} 4. g3 {[%clk 0:02:57]}  Bb7 {[%clk 0:02:53]} 5. Bg2 {[%clk 0:02:57]}  Be7 {[%clk 0:02:52]} 6. O-O {[%clk 0:02:57]}  d5 {[%clk 0:02:51]} 7. cxd5 {[%clk 0:02:55]}  exd5 {[%clk 0:02:49]} 8. Nc3 {[%clk 0:02:51]}  O-O {[%clk 0:02:47]} 9. Ne5 {[%clk 0:02:49]}  c6 {[%clk 0:02:41]} 10. Bf4 {[%clk 0:02:46]}  Nbd7 {[%clk 0:02:34]} 11. Rc1 {[%clk 0:02:45]}  Nxe5 {[%clk 0:02:23]} 12. Bxe5 {[%clk 0:02:44]}  Bd6 {[%clk 0:02:05]} 13. e4 {[%clk 0:02:27]}  dxe4 {[%clk 0:01:27]} 14. Nxe4 {[%clk 0:02:20]}  Nxe4 {[%clk 0:01:22]} 15. Bxe4 {[%clk 0:02:20]}  Rc8 {[%clk 0:01:14]} 16. Qa4 {[%clk 0:01:42]}  Bxe5 {[%clk 0:00:48]} 17. dxe5 {[%clk 0:01:41]}  Qc7 {[%clk 0:00:48]} 18. f4 {[%clk 0:01:33]}  c5 {[%clk 0:00:44]} 19. Rfd1 {[%clk 0:01:13]}  Bxe4 {[%clk 0:00:24]} 20. Qxe4 {[%clk 0:01:12]}  Rfd8 {[%clk 0:00:20]} 21. f5 {[%clk 0:01:09]}  Qe7 {[%clk 0:00:15]} 22. e6 {[%clk 0:01:00]}  h6 {[%clk 0:00:08]} 23. Qe5 {[%clk 0:00:51]}  fxe6 {[%clk 0:00:05]} 24. fxe6 {[%clk 0:00:50]}  Kh8 {[%clk 0:00:01]} 25. Rf1 {[%clk 0:00:34]}  Kg8 {[%clk 0:00:01]} 26. Rf7 {[%clk 0:00:31]}  Qg5 {[%clk 0:00:02]} 27. Qxg5 {[%clk 0:00:19]}  hxg5 {[%clk 0:00:02]} 28. Rxa7 {[%clk 0:00:18]}  Rd2 {[%clk 0:00:01]} 29. Rf1 {[%clk 0:00:18]}  Re8 {[%clk 0:00:01]} 30. Rff7 {[%clk 0:00:17]}  Rxe6 {[%clk 0:00:01]} 31. Rxg7+ {[%clk 0:00:17]}  Kf8 {[%clk 0:00:02]} 32. Rgf7+ {[%clk 0:00:16]}  Ke8 {[%clk 0:00:02]} 33. Rf2 {[%clk 0:00:15]}  Rd1+ {[%clk 0:00:01]} 34. Kg2 {[%clk 0:00:15]} 1-0


[Site "https://www.chess.com"]

[Event "Titled Tuesday Blitz January 17 Early 2023"]
[White "Lacasa Diaz, Jose Antonio"]
[Black "Cueto, Jonny"]
[WhiteFideId "2203375"]
[BlackFideId "3300145"]
[WhiteElo "2359"]
[BlackElo "2122"]
[Result "0-1"]
[Round "05"]
[TimeControl "180+2"]
[Date "2023.01.17"]
[WhiteClock "0:01:18"]
[BlackClock "0:00:27"]

1. e4 {[%clk 0:03:00]}  e6 {[%clk 0:02:59]} 2. d4 {[%clk 0:03:00]}  d5 {[%clk 0:03:00]} 3. Nc3 {[%clk 0:03:00]}  Nf6 {[%clk 0:03:00]} 4. Bg5 {[%clk 0:02:59]}  Be7 {[%clk 0:03:00]} 5. e5 {[%clk 0:02:59]}  Nfd7 {[%clk 0:03:00]} 6. Bxe7 {[%clk 0:03:00]}  Qxe7 {[%clk 0:03:01]} 7. f4 {[%clk 0:03:00]}  a6 {[%clk 0:03:01]} 8. Nf3 {[%clk 0:03:00]}  c5 {[%clk 0:03:02]} 9. Qd2 {[%clk 0:03:00]}  Nc6 {[%clk 0:03:03]} 10. dxc5 {[%clk 0:03:01]}  Nxc5 {[%clk 0:03:02]} 11. Bd3 {[%clk 0:03:00]}  b5 {[%clk 0:03:00]} 12. Qe3 {[%clk 0:03:00]}  Bd7 {[%clk 0:02:56]} 13. O-O-O {[%clk 0:02:57]}  Rc8 {[%clk 0:02:40]} 14. Kb1 {[%clk 0:02:57]}  b4 {[%clk 0:02:20]} 15. Ne2 {[%clk 0:02:56]}  a5 {[%clk 0:02:20]} 16. Ned4 {[%clk 0:02:55]}  a4 {[%clk 0:02:18]} 17. Nxc6 {[%clk 0:02:54]}  Bxc6 {[%clk 0:02:19]} 18. Nd4 {[%clk 0:02:53]}  b3 {[%clk 0:02:05]} 19. Nxc6 {[%clk 0:02:51]}  bxc2+ {[%clk 0:01:58]} 20. Bxc2 {[%clk 0:02:33]}  Rxc6 {[%clk 0:01:57]} 21. a3 {[%clk 0:02:29]}  O-O {[%clk 0:01:55]} 22. g4 {[%clk 0:02:23]}  Rb8 {[%clk 0:01:48]} 23. Ka1 {[%clk 0:02:23]}  Rcb6 {[%clk 0:01:41]} 24. Rb1 {[%clk 0:02:23]}  Nb3+ {[%clk 0:01:42]} 25. Bxb3 {[%clk 0:02:22]}  Rxb3 {[%clk 0:01:43]} 26. Qd2 {[%clk 0:02:16]}  Qb7 {[%clk 0:01:11]} 27. f5 {[%clk 0:02:12]}  Qb5 {[%clk 0:00:56]} 28. f6 {[%clk 0:02:05]}  Qd3 {[%clk 0:00:49]} 29. Qg2 {[%clk 0:01:47]}  Qf3 {[%clk 0:00:37]} 30. Qd2 {[%clk 0:01:33]}  Qe3 {[%clk 0:00:29]} 31. Rhd1 {[%clk 0:01:21]}  Qxe5 {[%clk 0:00:27]} 32. fxg7 {[%clk 0:01:18]}  Rxa3# {[%clk 0:00:27]} 0-1


[Site "https://www.chess.com"]

[Event "Titled Tuesday Blitz January 17 Early 2023"]
[White "Mitrovic, Darko R"]
[Black "Luukkonen, Tommi"]
[WhiteFideId "927023"]
[BlackFideId "501808"]
[WhiteElo "2220"]
[BlackElo "2292"]
[Result "0-1"]
[Round "05"]
[TimeControl "180+2"]
[Date "2023.01.17"]
[WhiteClock "0:00:01"]
[BlackClock "0:00:56"]

1. d4 {[%clk 0:02:33]}  d5 {[%clk 0:02:57]} 2. Nf3 {[%clk 0:02:33]}  e6 {[%clk 0:02:57]} 3. g3 {[%clk 0:02:33]}  Nf6 {[%clk 0:02:55]} 4. Bg2 {[%clk 0:02:34]}  c5 {[%clk 0:02:55]} 5. O-O {[%clk 0:02:32]}  cxd4 {[%clk 0:02:55]} 6. Nxd4 {[%clk 0:02:32]}  e5 {[%clk 0:02:52]} 7. Nf3 {[%clk 0:02:27]}  Nc6 {[%clk 0:02:50]} 8. Bg5 {[%clk 0:02:27]}  Be6 {[%clk 0:02:35]} 9. c3 {[%clk 0:02:14]}  Be7 {[%clk 0:02:34]} 10. Nbd2 {[%clk 0:02:12]}  O-O {[%clk 0:02:32]} 11. Nb3 {[%clk 0:02:05]}  Qb6 {[%clk 0:02:28]} 12. Be3 {[%clk 0:01:50]}  Qc7 {[%clk 0:02:23]} 13. Bc5 {[%clk 0:01:42]}  Rfd8 {[%clk 0:02:23]} 14. Bxe7 {[%clk 0:01:40]}  Qxe7 {[%clk 0:02:24]} 15. Qd2 {[%clk 0:01:13]}  Ne4 {[%clk 0:02:06]} 16. Qe3 {[%clk 0:01:13]}  f6 {[%clk 0:02:01]} 17. Nfd2 {[%clk 0:00:55]}  Nd6 {[%clk 0:02:00]} 18. a4 {[%clk 0:00:43]}  a5 {[%clk 0:01:49]} 19. Qc5 {[%clk 0:00:36]}  Qf7 {[%clk 0:01:36]} 20. Qa3 {[%clk 0:00:27]}  b6 {[%clk 0:01:32]} 21. Nc1 {[%clk 0:00:15]}  Rac8 {[%clk 0:01:29]} 22. Nd3 {[%clk 0:00:14]}  f5 {[%clk 0:01:28]} 23. f4 {[%clk 0:00:12]}  e4 {[%clk 0:01:26]} 24. Nc1 {[%clk 0:00:11]}  d4 {[%clk 0:01:23]} 25. Ndb3 {[%clk 0:00:03]}  d3 {[%clk 0:01:18]} 26. exd3 {[%clk 0:00:03]}  exd3 {[%clk 0:01:19]} 27. Nd2 {[%clk 0:00:03]}  Bd5 {[%clk 0:01:15]} 28. Ncb3 {[%clk 0:00:02]}  Ne4 {[%clk 0:01:12]} 29. Rfe1 {[%clk 0:00:01]}  Re8 {[%clk 0:00:57]} 30. Rad1 {[%clk 0:00:01]}  g5 {[%clk 0:00:56]} 0-1


[Site "https://www.chess.com"]

[Event "Titled Tuesday Blitz January 17 Early 2023"]
[White "Andreev, Konstantin"]
[Black "Winkels, Marcel"]
[WhiteFideId "24239305"]
[BlackFideId "1003887"]
[WhiteElo "2195"]
[BlackElo "1960"]
[Result "1-0"]
[Round "05"]
[TimeControl "180+2"]
[Date "2023.01.17"]
[WhiteClock "0:00:44"]
[BlackClock "0:00:04"]

1. e4 {[%clk 0:03:00]}  c5 {[%clk 0:02:57]} 2. Nf3 {[%clk 0:03:01]}  e6 {[%clk 0:02:58]} 3. d4 {[%clk 0:03:00]}  cxd4 {[%clk 0:02:57]} 4. Nxd4 {[%clk 0:03:01]}  Nc6 {[%clk 0:02:57]} 5. Nc3 {[%clk 0:03:01]}  Qc7 {[%clk 0:02:57]} 6. g4 {[%clk 0:03:01]}  a6 {[%clk 0:02:50]} 7. h4 {[%clk 0:02:59]}  b5 {[%clk 0:02:44]} 8. Nxc6 {[%clk 0:02:59]}  Qxc6 {[%clk 0:02:37]} 9. a3 {[%clk 0:02:59]}  Nf6 {[%clk 0:02:32]} 10. Bg2 {[%clk 0:02:30]}  Bb7 {[%clk 0:02:21]} 11. g5 {[%clk 0:02:29]}  Ng8 {[%clk 0:02:16]} 12. Qd4 {[%clk 0:02:28]}  O-O-O {[%clk 0:02:01]} 13. Be3 {[%clk 0:02:24]}  f5 {[%clk 0:01:51]} 14. O-O-O {[%clk 0:02:22]}  Ne7 {[%clk 0:01:47]} 15. Rhg1 {[%clk 0:02:17]}  Qc7 {[%clk 0:01:23]} 16. Qd2 {[%clk 0:01:58]}  Kb8 {[%clk 0:01:09]} 17. exf5 {[%clk 0:01:34]}  Nxf5 {[%clk 0:01:00]} 18. Bf4 {[%clk 0:01:32]}  e5 {[%clk 0:00:57]} 19. Bxb7 {[%clk 0:01:27]}  Kxb7 {[%clk 0:00:52]} 20. Qd5+ {[%clk 0:01:25]}  Kb8 {[%clk 0:00:51]} 21. Bxe5 {[%clk 0:01:22]}  d6 {[%clk 0:00:38]} 22. Bh2 {[%clk 0:01:20]}  g6 {[%clk 0:00:27]} 23. Rg4 {[%clk 0:01:14]}  Bg7 {[%clk 0:00:22]} 24. Nxb5 {[%clk 0:01:06]}  axb5 {[%clk 0:00:19]} 25. Rb4 {[%clk 0:01:06]}  Kc8 {[%clk 0:00:12]} 26. Qxb5 {[%clk 0:00:59]}  Rhe8 {[%clk 0:00:10]} 27. Rc4 {[%clk 0:00:58]}  Re7 {[%clk 0:00:07]} 28. Rxc7+ {[%clk 0:00:55]}  Rxc7 {[%clk 0:00:08]} 29. c3 {[%clk 0:00:50]}  Rc5 {[%clk 0:00:04]} 30. Qa6+ {[%clk 0:00:47]}  Kd7 {[%clk 0:00:04]} 31. Bxd6 {[%clk 0:00:44]} 1-0


[Site "https://www.chess.com"]

[Event "Titled Tuesday Blitz January 17 Early 2023"]
[White "Silva, Pedro Gil Ferreira Da"]
[Black "Aung Thant Zin"]
[WhiteFideId "1946102"]
[BlackFideId "13000063"]
[WhiteElo "2227"]
[BlackElo "2268"]
[Result "1-0"]
[Round "05"]
[TimeControl "180+2"]
[Date "2023.01.17"]
[WhiteClock "0:00:18"]
[BlackClock "0:00:01"]

1. c4 {[%clk 0:03:00]}  e5 {[%clk 0:02:59]} 2. Nc3 {[%clk 0:02:59]}  Nf6 {[%clk 0:03:00]} 3. Nf3 {[%clk 0:02:53]}  Nc6 {[%clk 0:02:58]} 4. e4 {[%clk 0:02:52]}  Bc5 {[%clk 0:02:53]} 5. Nxe5 {[%clk 0:02:43]}  Nxe5 {[%clk 0:02:44]} 6. d4 {[%clk 0:02:31]}  Bb4 {[%clk 0:02:41]} 7. dxe5 {[%clk 0:02:25]}  Nxe4 {[%clk 0:02:32]} 8. Qf3 {[%clk 0:02:25]}  Nxc3 {[%clk 0:02:23]} 9. bxc3 {[%clk 0:02:24]}  Be7 {[%clk 0:02:23]} 10. Qg3 {[%clk 0:02:21]}  Kf8 {[%clk 0:02:19]} 11. Bd3 {[%clk 0:02:18]}  b6 {[%clk 0:02:19]} 12. Be4 {[%clk 0:02:17]}  Rb8 {[%clk 0:02:19]} 13. O-O {[%clk 0:02:08]}  Bb7 {[%clk 0:02:18]} 14. Bxb7 {[%clk 0:02:04]}  Rxb7 {[%clk 0:02:18]} 15. Be3 {[%clk 0:02:02]}  d6 {[%clk 0:02:06]} 16. Rad1 {[%clk 0:02:01]}  Qc8 {[%clk 0:02:06]} 17. exd6 {[%clk 0:01:55]}  Bxd6 {[%clk 0:02:05]} 18. Bf4 {[%clk 0:01:55]}  Bxf4 {[%clk 0:01:45]} 19. Qxf4 {[%clk 0:01:56]}  h5 {[%clk 0:01:37]} 20. Rfe1 {[%clk 0:01:54]}  Rh6 {[%clk 0:01:23]} 21. Qg5 {[%clk 0:01:39]}  f6 {[%clk 0:00:52]} 22. Qd5 {[%clk 0:01:23]}  c6 {[%clk 0:00:39]} 23. Qd6+ {[%clk 0:01:15]}  Kg8 {[%clk 0:00:31]} 24. Re7 {[%clk 0:00:48]}  Rxe7 {[%clk 0:00:19]} 25. Qxe7 {[%clk 0:00:49]}  Qg4 {[%clk 0:00:14]} 26. Rd7 {[%clk 0:00:23]}  Rg6 {[%clk 0:00:10]} 27. g3 {[%clk 0:00:23]}  Qxc4 {[%clk 0:00:08]} 28. Rxa7 {[%clk 0:00:19]}  f5 {[%clk 0:00:05]} 29. Qe8+ {[%clk 0:00:18]}  Kh7 {[%clk 0:00:05]} 30. Ra8 {[%clk 0:00:19]}  Re6 {[%clk 0:00:05]} 31. Qh8+ {[%clk 0:00:18]}  Kg6 {[%clk 0:00:04]} 32. Re8 {[%clk 0:00:16]}  Rxe8 {[%clk 0:00:02]} 33. Qxe8+ {[%clk 0:00:17]}  Kh7 {[%clk 0:00:01]} 34. Qxh5+ {[%clk 0:00:16]}  Kg8 {[%clk 0:00:01]} 35. Qf3 {[%clk 0:00:17]}  g6 {[%clk 0:00:01]} 36. h4 {[%clk 0:00:17]}  Kg7 {[%clk 0:00:01]} 37. Kg2 {[%clk 0:00:17]}  Qxa2 {[%clk 0:00:01]} 38. Qxc6 {[%clk 0:00:17]}  Qb3 {[%clk 0:00:01]} 39. Qc7+ {[%clk 0:00:17]}  Kh6 {[%clk 0:00:01]} 40. Qf4+ {[%clk 0:00:18]}  Kg7 {[%clk 0:00:01]} 41. Qb4 {[%clk 0:00:18]} 1-0


[Site "https://www.chess.com"]

[Event "Titled Tuesday Blitz January 17 Early 2023"]
[White "Topalov, Aleksandar"]
[Black "Kuchava, Ana"]
[WhiteFideId "925659"]
[BlackFideId "13605348"]
[WhiteElo "2233"]
[BlackElo "2101"]
[Result "1/2-1/2"]
[Round "05"]
[TimeControl "180+2"]
[Date "2023.01.17"]
[WhiteClock "0:00:10"]
[BlackClock "0:00:22"]

1. b3 {[%clk 0:01:53]}  d5 {[%clk 0:02:55]} 2. Bb2 {[%clk 0:01:53]}  c5 {[%clk 0:02:51]} 3. e3 {[%clk 0:01:53]}  Nc6 {[%clk 0:02:51]} 4. Bb5 {[%clk 0:01:52]}  Bd7 {[%clk 0:02:45]} 5. f4 {[%clk 0:01:52]}  Nf6 {[%clk 0:02:38]} 6. Nf3 {[%clk 0:01:52]}  a6 {[%clk 0:02:37]} 7. Bxc6 {[%clk 0:01:51]}  Bxc6 {[%clk 0:02:38]} 8. Ne5 {[%clk 0:01:52]}  Qc7 {[%clk 0:02:33]} 9. O-O {[%clk 0:01:52]}  e6 {[%clk 0:02:30]} 10. d3 {[%clk 0:01:52]}  Bd6 {[%clk 0:02:29]} 11. Nd2 {[%clk 0:01:52]}  b5 {[%clk 0:02:22]} 12. Rf3 {[%clk 0:01:49]}  d4 {[%clk 0:02:18]} 13. Nxc6 {[%clk 0:01:45]}  dxe3 {[%clk 0:02:08]} 14. Ne5 {[%clk 0:01:36]}  exd2 {[%clk 0:02:04]} 15. Qxd2 {[%clk 0:01:36]}  O-O {[%clk 0:01:57]} 16. Raf1 {[%clk 0:01:24]}  Rad8 {[%clk 0:01:50]} 17. Qe1 {[%clk 0:01:18]}  Nd7 {[%clk 0:01:38]} 18. Rg3 {[%clk 0:01:02]}  f6 {[%clk 0:01:38]} 19. Nxd7 {[%clk 0:00:50]}  Qxd7 {[%clk 0:01:38]} 20. Qe4 {[%clk 0:00:45]}  Rde8 {[%clk 0:01:31]} 21. Rh3 {[%clk 0:00:44]}  f5 {[%clk 0:01:28]} 22. Qe2 {[%clk 0:00:34]}  Rf7 {[%clk 0:01:22]} 23. Re3 {[%clk 0:00:34]}  Rfe7 {[%clk 0:01:18]} 24. g3 {[%clk 0:00:31]}  Kf7 {[%clk 0:01:13]} 25. Kg2 {[%clk 0:00:27]}  Qc6+ {[%clk 0:01:12]} 26. Qf3 {[%clk 0:00:27]}  Qxf3+ {[%clk 0:01:08]} 27. Rfxf3 {[%clk 0:00:27]}  Rc8 {[%clk 0:01:07]} 28. c4 {[%clk 0:00:22]}  b4 {[%clk 0:01:03]} 29. Rf1 {[%clk 0:00:20]}  a5 {[%clk 0:01:02]} 30. Rfe1 {[%clk 0:00:19]}  a4 {[%clk 0:00:58]} 31. d4 {[%clk 0:00:18]}  a3 {[%clk 0:00:43]} 32. Ba1 {[%clk 0:00:17]}  Rd8 {[%clk 0:00:42]} 33. Rd3 {[%clk 0:00:15]}  Bc7 {[%clk 0:00:34]} 34. Red1 {[%clk 0:00:15]}  Red7 {[%clk 0:00:34]} 35. Kf3 {[%clk 0:00:15]}  Bb6 {[%clk 0:00:33]} 36. d5 {[%clk 0:00:14]}  Bc7 {[%clk 0:00:26]} 37. Ke2 {[%clk 0:00:13]}  g6 {[%clk 0:00:20]} 38. dxe6+ {[%clk 0:00:10]}  Kxe6 {[%clk 0:00:21]} 39. Rxd7 {[%clk 0:00:10]}  Rxd7 {[%clk 0:00:22]} 40. Rxd7 {[%clk 0:00:10]}  Kxd7 {[%clk 0:00:23]} 41. Kd3 {[%clk 0:00:10]}  Kc6 {[%clk 0:00:22]} 42. Bf6 {[%clk 0:00:10]}  Bd6 {[%clk 0:00:22]} 43. Bg7 {[%clk 0:00:10]}  Be7 {[%clk 0:00:22]} 44. Be5 {[%clk 0:00:10]} 1/2-1/2


[Site "https://www.chess.com"]

[Event "Titled Tuesday Blitz January 17 Early 2023"]
[White "Degtiarev, Evgeny"]
[Black "Soumya, Swaminathan"]
[WhiteFideId "4149610"]
[BlackFideId "5016193"]
[WhiteElo "2385"]
[BlackElo "2293"]
[Result "1-0"]
[Round "05"]
[TimeControl "180+2"]
[Date "2023.01.17"]
[WhiteClock "0:01:09"]
[BlackClock "0:00:35"]

1. d4 {[%clk 0:03:00]}  Nf6 {[%clk 0:02:58]} 2. c4 {[%clk 0:03:00]}  c5 {[%clk 0:02:52]} 3. d5 {[%clk 0:03:00]}  e6 {[%clk 0:02:52]} 4. Nc3 {[%clk 0:03:00]}  exd5 {[%clk 0:02:51]} 5. cxd5 {[%clk 0:03:01]}  d6 {[%clk 0:02:52]} 6. g3 {[%clk 0:03:01]}  g6 {[%clk 0:02:50]} 7. Bg2 {[%clk 0:03:02]}  Bg7 {[%clk 0:02:50]} 8. Nf3 {[%clk 0:03:02]}  O-O {[%clk 0:02:50]} 9. O-O {[%clk 0:03:03]}  Re8 {[%clk 0:02:50]} 10. Bf4 {[%clk 0:03:02]}  h6 {[%clk 0:02:49]} 11. Re1 {[%clk 0:02:53]}  g5 {[%clk 0:02:37]} 12. Bd2 {[%clk 0:02:49]}  Bf5 {[%clk 0:02:33]} 13. h4 {[%clk 0:02:29]}  g4 {[%clk 0:02:29]} 14. Nh2 {[%clk 0:02:29]}  Qd7 {[%clk 0:01:59]} 15. e4 {[%clk 0:02:15]}  Bg6 {[%clk 0:01:59]} 16. Bf4 {[%clk 0:02:02]}  Na6 {[%clk 0:01:43]} 17. e5 {[%clk 0:02:01]}  dxe5 {[%clk 0:01:43]} 18. Bxe5 {[%clk 0:02:01]}  Nb4 {[%clk 0:01:40]} 19. Bxf6 {[%clk 0:01:58]}  Rxe1+ {[%clk 0:01:34]} 20. Qxe1 {[%clk 0:01:55]}  Nc2 {[%clk 0:01:27]} 21. Qd1 {[%clk 0:01:23]}  Nxa1 {[%clk 0:01:07]} 22. Bxg7 {[%clk 0:01:20]}  Kxg7 {[%clk 0:01:07]} 23. Qxa1 {[%clk 0:01:19]}  h5 {[%clk 0:00:48]} 24. Nf1 {[%clk 0:01:18]}  b5 {[%clk 0:00:44]} 25. b4 {[%clk 0:01:16]}  cxb4 {[%clk 0:00:35]} 26. Ne4+ {[%clk 0:01:09]} 1-0


[Site "https://www.chess.com"]

[Event "Titled Tuesday Blitz January 17 Early 2023"]
[White "Liimatainen, Jero"]
[Black "Bas Mas, Jose Joaquin"]
[WhiteFideId "509531"]
[BlackFideId "22219064"]
[WhiteElo "1948"]
[BlackElo "2197"]
[Result "0-1"]
[Round "05"]
[TimeControl "180+2"]
[Date "2023.01.17"]
[WhiteClock "0:00:59"]
[BlackClock "0:02:13"]

1. e4 {[%clk 0:03:00]}  Nf6 {[%clk 0:03:00]} 2. e5 {[%clk 0:02:59]}  Nd5 {[%clk 0:03:00]} 3. c4 {[%clk 0:03:00]}  Nb6 {[%clk 0:03:00]} 4. d4 {[%clk 0:03:01]}  d6 {[%clk 0:03:00]} 5. exd6 {[%clk 0:03:00]}  cxd6 {[%clk 0:03:01]} 6. Nc3 {[%clk 0:03:00]}  g6 {[%clk 0:03:01]} 7. Be3 {[%clk 0:03:00]}  Bg7 {[%clk 0:03:02]} 8. Rc1 {[%clk 0:03:01]}  O-O {[%clk 0:03:02]} 9. b3 {[%clk 0:03:01]}  Bf5 {[%clk 0:03:02]} 10. Be2 {[%clk 0:02:58]}  d5 {[%clk 0:02:46]} 11. Nf3 {[%clk 0:02:50]}  Bg4 {[%clk 0:02:44]} 12. c5 {[%clk 0:02:47]}  Nc8 {[%clk 0:02:44]} 13. h3 {[%clk 0:02:45]}  Bxf3 {[%clk 0:02:43]} 14. Bxf3 {[%clk 0:02:44]}  e6 {[%clk 0:02:42]} 15. O-O {[%clk 0:02:42]}  Nc6 {[%clk 0:02:43]} 16. a3 {[%clk 0:02:40]}  N8e7 {[%clk 0:02:41]} 17. b4 {[%clk 0:02:40]}  a6 {[%clk 0:02:41]} 18. Na4 {[%clk 0:02:32]}  Nf5 {[%clk 0:02:29]} 19. Nb6 {[%clk 0:02:24]}  Ra7 {[%clk 0:02:28]} 20. g3 {[%clk 0:01:56]}  Nfxd4 {[%clk 0:02:24]} 21. Bg2 {[%clk 0:01:56]}  a5 {[%clk 0:02:20]} 22. Qb3 {[%clk 0:01:49]}  Nxb3 {[%clk 0:02:19]} 23. b5 {[%clk 0:01:06]}  Nxc1 {[%clk 0:02:16]} 24. bxc6 {[%clk 0:01:04]}  Ne2+ {[%clk 0:02:14]} 25. Kh1 {[%clk 0:01:03]}  bxc6 {[%clk 0:02:15]} 26. Ra1 {[%clk 0:00:59]}  e5 {[%clk 0:02:14]} 27. Bg5 {[%clk 0:00:58]}  Qxg5 {[%clk 0:02:13]} 28. Rc1 {[%clk 0:00:58]}  Qxc1+ {[%clk 0:02:12]} 29. Kh2 {[%clk 0:00:59]}  Qg1# {[%clk 0:02:13]} 0-1


[Site "https://www.chess.com"]